Workbook

Sheet גיליון1
M2: מספר בעלי זכות בחירה: | N2: 5,656,705
B3: חלוקת מושבי הכנסת ה19 לפי חוק בדר עופר | H3: הסכמי עודפים: | I3: מספר קולות משותף: | M3: מספר המצביעים בפועל: | N3: 3,833,646 | O3: =N3/(N2/100) -> 67.77
G4: 1 | H4: ליכוד ביתנו - בית יהודי | I4: =E20+E23 -> 1,231,148 | M4: מספר קולות כשרים: | N4: 3,792,742 | O4: =N4/(N2/100) -> 67.05
G5: 2 | H5: ש"ס-יהדות התורה | I5: =E24+E25 -> 527,760 | M5: מספר קולות פסולים: | N5: 40,904 | O5: =N5/(N2/100) -> 0.72
G6: 3 | H6: התנועה - מרצ | I6: =E26+E27 -> 361,570 | M6: אחוז החסימה 2 אחוז: | N6: =(N4/100)*2 -> 75,854.84
G7: 4 | H7: העבודה - יש עתיד | I7: =E22+E21 -> 975,576 | M7: מספר קולות של מפלגות שעברו אחוז החסימה: | N7: =E20+E21+E22+E23+E24+E25+E26+E27+E28+E29+E30+E31 -> 3,523,947
G8: 5 | H8: חד"ש - בל"ד | I8: =E29+E30 -> 210,469 | M8: מודד למנדט (/120) | N8: =N7/120 -> 29,366.23
M9: מנדטים שחולקו בחלוקה הראשונה: | N9: =SUM(G20:G31) -> 113
M10: נשאר לחלק: | N10: =120-N9 -> 7
I14: המודד הגבוה מסומן בירוק
I15: בהסכמי עודפים - המפלגה שהמודד שלה בפני עצמה גבוה יותר, מסומנת במסגרת כתומה
Z16: חישוב חלוקת מנדט ראשון בעודפים:
I17: מרצ | J17: מרצ | K17: חד"ש | L17: חד"ש | M17: העבודה | N17: העבודה | O17: יהדות התורה | P17: יהדות התורה | Q17: הבית היהודי | R17: הבית היהודי | S17: יש עתיד | T17: יש עתיד | U17: ליכוד ביתנו | V17: ליכוד ביתנו
F18: אחוז מכלל | G18: חלוקת מנדטים | H18: שאריות קולות לאחר | I18: מודד למנדט ראשון לפי | J18: חלוקת מנדט | K18: מודד למנדט שני לפי | L18: חלוקת מנדט | M18: מודד למנדט שלישי לפי | N18: חלוקת מנדט | O18: מודד למנדט רביעי לפי | P18: חלוקת מנדט | Q18: מודד למנדט חמישי לפי | R18: חלוקת מנדט | S18: מודד למנדט שישי לפי | T18: חלוקת מנדט | U18: מודד למנדט שביעי לפי | V18: חלוקת מנדט | Y18: מנדטים | AB18: מודד משותף | AC18: חלוקה במודד רשימה בודדת | AD18: מנדטים בחלוקה מחודשת
C19: מס': | D19: מפלגה: | E19: מספר קולות: | F19: הקולות: | G19: ראשונית | H19: חלוקה ראשונה | I19: חוק בדר עופר | J19: עודף ראשון | K19: חוק בדר עופר | L19: עודף שני | M19: חוק בדר עופר | N19: עודף שלישי | O19: חוק בדר עופר | P19: עודף רביעי | Q19: חוק בדר עופר | R19: עודף חמישי | S19: חוק בדר עופר | T19: עודף שישי | U19: חוק בדר עופר | V19: עודף שביעי | Y19: 6 | Z19: התנועה | AA19: 189,167 | AB19: 30,130.83 | AC19: =AA19/(Y19+1) -> 27,023.86 | AD19: 6
C20: 1 | D20: הליכוד ביתנו | E20: 885,163 | F20: =E20/(N4/100) -> 23.34 | G20: 30 | H20: =E20-(G20*מודד_מנדט) -> 4,176.25 | I20: =I4/(G20+G23+1) -> 29,313.05 | J20: 30 | K20: =I4/(G20+G23+1) -> 29,313.05 | L20: 30 | M20: =K20 -> 29,313 | N20: 30 | O20: =M20 -> 29,313 | P20: 30 | Q20: =O20 -> 29,313 | R20: 30 | S20: =I4/(R20+R23+1) -> 28,631 | T20: 30 | U20: =S20 -> 28,631 | V20: 31 | W20: הליכוד ביתנו | Y20: 5 | Z20: מרצ | AA20: 172,403 | AB20: 30,130.83 | AC20: =AA20/(Y20+1) -> 28,733.83 | AD20: 6
C21: 2 | D21: יש עתיד | E21: 543,458 | F21: =E21/(N4/100) -> 14.33 | G21: 18 | H21: 14,865.95 | I21: =I7/(G21+G22+1) -> 29,562.91 | J21: 18 | K21: =I7/(G21+G22+1) -> 29,562.91 | L21: 18 | M21: =K21 -> 29,563 | N21: 18 | O21: =I7/(N21+N22+1) -> 28,693 | P21: 18 | Q21: =O21 -> 28,693 | R21: 18 | S21: =Q21 -> 28,693 | T21: 19 | U21: =I7/(T21+T22+1) -> 27,874 | V21: 19 | W21: יש עתיד | AA21: =SUM(AA19:AA20) -> 361,570
C22: 3 | D22: העבודה | E22: 432,118 | F22: =E22/(N4/100) -> 11.39 | G22: 14 | H22: 20,990.85 | I22: =I7/(G21+G22+1) -> 29,562.91 | J22: 14 | K22: =I7/(G21+G22+1) -> 29,562.91 | L22: 14 | M22: =K22 -> 29,563 | N22: 15 | O22: =I7/(N21+N22+1) -> 28,693 | P22: 15 | Q22: =O22 -> 28,693 | R22: 15 | S22: =Q22 -> 28,693 | T22: 15 | U22: =I7/(T21+T22+1) -> 27,874 | V22: 15 | W22: העבודה
C23: 4 | D23: הבית היהודי | E23: 345,985 | F23: =E23/(N4/100) -> 9.12 | G23: 11 | H23: 22,956.53 | I23: =I4/(G20+G23+1) -> 29,313.05 | J23: 11 | K23: =I4/(G20+G23+1) -> 29,313.05 | L23: 11 | M23: =K23 -> 29,313 | N23: 11 | O23: 29,313 | P23: 11 | Q23: =O23 -> 29,313 | R23: 12 | S23: =I4/(R20+R23+1) -> 28,631 | T23: 12 | U23: =S23 -> 28,631 | V23: 12 | W23: הבית היהודי
C24: 5 | D24: ש"ס | E24: 331,868 | F24: =E24/(N4/100) -> 8.75 | G24: 11 | H24: 8,839.53 | I24: =I5/(G24+G25+1) -> 29,320 | J24: 11 | K24: =I5/(G24+G25+1) -> 29,320 | L24: 11 | M24: 29,320 | N24: 11 | O24: 29,320 | P24: 11 | Q24: =I5/(P24+P25+1) -> 27,777 | R24: 11 | S24: =Q24 -> 27,777 | T24: 11 | U24: =S24 -> 27,777 | V24: 11 | W24: ש"ס | Z24: חישוב חלוקת מנדט שני בעודפים:
C25: 6 | D25: יהדות התורה | E25: 195,892 | F25: =E25/(N4/100) -> 5.16 | G25: 6 | H25: 19,694.65 | I25: =I5/(G24+G25+1) -> 29,320 | J25: 6 | K25: =I5/(G24+G25+1) -> 29,320 | L25: 6 | M25: 29,320 | N25: 6 | O25: 29,320 | P25: 7 | Q25: =I5/(P24+P25+1) -> 27,777 | R25: 7 | S25: =Q25 -> 27,777 | T25: 7 | U25: =S25 -> 27,777 | V25: 7 | W25: יהדות התורה
C26: 7 | D26: התנועה | E26: 189,167 | F26: =E26/(N4/100) -> 4.99 | G26: 6 | H26: 12,969.65 | I26: =I6/(G26+G27+1) -> 30,130.83 | J26: 6 | K26: =I6/(J26+J27+1) -> 27,813 | L26: 6 | M26: 27,813 | N26: 6 | O26: 27,813 | P26: 6 | Q26: 27,813 | R26: 6 | S26: =Q26 -> 27,813 | T26: 6 | U26: =S26 -> 27,813 | V26: 6 | W26: התנועה | Y26: מנדטים | AB26: מודד משותף | AC26: חלוקה במודד רשימה בודדת | AD26: מנדטים בחלוקה מחודשת
C27: 8 | D27: מרצ | E27: 172,403 | F27: =E27/(N4/100) -> 4.55 | G27: 5 | H27: 25,571.88 | I27: =I6/(G26+G27+1) -> 30,130.83 | J27: 6 | K27: =I6/(J26+J27+1) -> 27,813 | L27: 6 | M27: 27,813 | N27: 6 | O27: 27,813 | P27: 6 | Q27: 27,813 | R27: 6 | S27: 27,813 | T27: 6 | U27: 27,813 | V27: 6 | W27: מרצ | Y27: 3 | Z27: חד"ש | AA27: 113,439 | AB27: 30,067 | AC27: =AA27/4 -> 28,359.75 | AD27: 4
C28: 9 | D28: רע"ם-תע"ל | E28: 138,450 | F28: =E28/(N4/100) -> 3.65 | G28: 4 | H28: 20,985.10 | I28: =E28/5 -> 27,690 | J28: 4 | K28: =E28/5 -> 27,690 | L28: 4 | M28: 27,690 | N28: 4 | O28: 27,690 | P28: 4 | Q28: 27,690 | R28: 4 | S28: 27,690 | T28: 4 | U28: 27,690 | V28: 4 | W28: רע"ם-תע"ל | Y28: 3 | Z28: בל"ד | AA28: 97,030 | AB28: 30,067 | AC28: =AA28/4 -> 24,257.50 | AD28: 3
C29: 10 | D29: חד"ש | E29: 113,439 | F29: =E29/(N4/100) -> 2.99 | G29: 3 | H29: 25,340.33 | I29: =I8/(G29+G30+1) -> 30,067 | J29: 3 | K29: =I8/(G29+G30+1) -> 30,067 | L29: 4 | M29: =I8/(L29+L30+1) -> 26,309 | N29: 4 | O29: =M29 -> 26,309 | P29: 4 | Q29: =O29 -> 26,309 | R29: 4 | S29: =Q29 -> 26,309 | T29: 4 | U29: =S29 -> 26,309 | V29: 4 | W29: חד"ש | AA29: =AA27+AA28 -> 210,469
C30: 11 | D30: בל"ד | E30: 97,030 | F30: =E30/(N4/100) -> 2.56 | G30: 3 | H30: 8,931.33 | I30: =I8/(G29+G30+1) -> 30,067 | J30: 3 | K30: =I8/(G29+G30+1) -> 30,067 | L30: 3 | M30: =I8/(L29+L30+1) -> 26,309 | N30: 3 | O30: =M30 -> 26,309 | P30: 3 | Q30: =O30 -> 26,309 | R30: 3 | S30: =Q30 -> 26,309 | T30: 3 | U30: =S30 -> 26,309 | V30: 3 | W30: בל"ד
C31: 12 | D31: קדימה | E31: 78,974 | F31: =E31/(N4/100) -> 2.08 | G31: 2 | H31: 20,241.55 | I31: =E31/3 -> 26,324.67 | J31: 2 | K31: =E31/3 -> 26,325 | L31: 2 | M31: =K31 -> 26,325 | N31: 2 | O31: =M31 -> 26,325 | P31: 2 | Q31: =O31 -> 26,325 | R31: 2 | S31: =Q31 -> 26,325 | T31: 2 | U31: =S31 -> 26,325 | V31: 2 | W31: קדימה
C32: 13 | D32: עוצמה לישראל | E32: 66,775 | F32: =E32/(N4/100) -> 1.76 | G32: =SUM(G20:G31) -> 113 | J32: =SUM(J20:J31) -> 114 | L32: =SUM(L20:L31) -> 115 | N32: =SUM(N20:N31) -> 116 | P32: =SUM(P20:P31) -> 117 | R32: =SUM(R20:R31) -> 118 | T32: =SUM(T20:T31) -> 119 | V32: =SUM(V20:V31) -> 120 | Z32: חישוב חלוקת מנדט שלישי בעודפים:
C33: 14 | D33: עם שלם | E33: 45,690 | F33: =E33/(N4/100) -> 1.20
C34: 15 | D34: עלה ירוק | E34: 43,734 | F34: =E34/(N4/100) -> 1.15 | Y34: מנדטים | AB34: מודד משותף | AC34: חלוקה במודד רשימה בודדת | AD34: מנדטים בחלוקה מחודשת
C35: 16 | D35: ארץ חדשה | E35: 28,080 | F35: =E35/(N4/100) -> 0.74 | Y35: 18 | Z35: יש עתיד | AA35: 543,458 | AB35: 29,563 | AC35: =AA35/19 -> 28,603.05 | AD35: 18
C36: 17 | D36: כח להשפיע | E36: 28,049 | F36: =E36/(N4/100) -> 0.74 | Y36: 14 | Z36: העבודה | AA36: 432,118 | AB36: 29,563 | AC36: =AA36/15 -> 28,807.87 | AD36: 15
C37: 18 | D37: הישראלים | E37: 18,939 | F37: =E37/(N4/100) -> 0.50 | AA37: =AA35+AA36 -> 975,576
C38: 19 | D38: הירוקים | E38: 8,117 | F38: =E38/(N4/100) -> 0.21
C39: 20 | D39: גיל(גמלאים) | E39: 5,975 | F39: =E39/(N4/100) -> 0.16
C40: 21 | D40: חיים בכבוד | E40: 3,640 | F40: =E40/(N4/100) -> 0.10 | Z40: חישוב חלוקת מנדט רביעי בעודפים:
C41: 22 | D41: דע"ם | E41: 3,546 | F41: =E41/(N4/100) -> 0.09
C42: 23 | D42: אחים אנחנו | E42: 2,899 | F42: =E42/(N4/100) -> 0.08 | Y42: מנדטים | AB42: מודד משותף | AC42: חלוקה במודד רשימה בודדת | AD42: מנדטים בחלוקה מחודשת
C43: 24 | D43: צדק חברתי | E43: 2,877 | F43: =E43/(N4/100) -> 0.08 | Y43: 11 | Z43: ש"ס | AA43: 331,868 | AB43: 29,320 | AC43: =AA43/12 -> 27,655.67 | AD43: 11
C44: 25 | D44: כולנו חברים | E44: 2,176 | F44: =E44/(N4/100) -> 0.06 | Y44: 6 | Z44: יהדות התורה | AA44: 195,892 | AB44: 29,320 | AC44: =AA44/7 -> 27,984.57 | AD44: 7
C45: 26 | D45: הפיראטים | E45: 2,076 | F45: =E45/(N4/100) -> 0.05 | AA45: =AA43+AA44 -> 527,760
C46: 27 | D46: מפלגת כלכלה | E46: 1,972 | F46: =E46/(N4/100) -> 0.05
C47: 28 | D47: לידר | E47: 1,352 | F47: =E47/(N4/100) -> 0.04
C48: 29 | D48: מפלגת אור | E48: 1,027 | F48: =E48/(N4/100) -> 0.03 | Z48: חישוב חלוקת מנדט חמישי בעודפים:
C49: 30 | D49: ברית עולם | E49: 761 | F49: =E49/(N4/100) -> 0.02
C50: 31 | D50: התקווה לשינוי | E50: 649 | F50: =E50/(N4/100) -> 0.02 | Y50: מנדטים | AB50: מודד משותף | AC50: חלוקה במודד רשימה בודדת | AD50: מנדטים בחלוקה מחודשת
C51: 32 | D51: מורשת אבות | E51: 461 | F51: =E51/(N4/100) -> 0.01 | Y51: 30 | Z51: הליכוד ביתנו | AA51: 885,163 | AB51: =Q20 -> 29,313 | AC51: =AA51/31 -> 28,553.65 | AD51: 30
D52: סה"כ | E52: =SUM(E20:E51) -> 3,792,742 | F52: =SUM(F20:F51) -> 100.00 | Y52: 11 | Z52: הבית היהודי | AA52: 345,985 | AB52: =AB51 -> 29,313 | AC52: =AA52/12 -> 28,832.08 | AD52: 12
AA53: =AA51+AA52 -> 1,231,148
C54: מפלגות שעברו את אחוז החסימה: | E54: =SUM(E20:E31) -> 3,523,947
C55: מפלגות שלא עברו את אחוז החסימה: | E55: =SUM(E32:E51) -> 268,795
Z56: חישוב חלוקת מנדט שישי בעודפים:
Y58: מנדטים | AB58: מודד משותף | AC58: חלוקה במודד רשימה בודדת | AD58: מנדטים בחלוקה מחודשת
Y59: 18 | Z59: יש עתיד | AA59: 543,458 | AB59: 28,693 | AC59: =AA59/19 -> 28,603.05 | AD59: 19
Y60: 15 | Z60: העבודה | AA60: 432,118 | AB60: 28,693 | AC60: =AA60/16 -> 27,007.38 | AD60: 15
AA61: =AA59+AA60 -> 975,576
X64: אחרון | Z64: חישוב חלוקת מנדט שביעי בעודפים:
Y66: מנדטים | AB66: מודד משותף | AC66: חלוקה במודד רשימה בודדת | AD66: מנדטים בחלוקה מחודשת
Y67: 30 | Z67: הליכוד ביתנו | AA67: 885,163 | AB67: 28,631 | AC67: =AA67/31 -> 28,553.65 | AD67: 31
Y68: 12 | Z68: הבית היהודי | AA68: 345,985 | AB68: 28,631 | AC68: =AA68/13 -> 26,614.23 | AD68: 12
AA69: =AA67+AA68 -> 1,231,148

Sheet גיליון2

Sheet גיליון3
